Cogmind - Beta 15 @@@ ROGUE MODE // 2025.06.28 @ 18:49:18 Player: Evie Result: Destroyed by as-43795 with Assembled Blade Performance ------------- Evolutions (0) 0 Regions Visited (4) 800 Robots Destroyed (19) 95 Value Destroyed (280) 280 Prototype IDs (25) 500 Alien Tech Used (0) 0 Bonus (300) 300 TOTAL SCORE: 1975 Bonus ------- Aligned with FarCom 300 Cogmind --------- Core Integrity 0/250 Matter 300/300 Energy 125/125 System Corruption 0% Temperature Cool (0) Movement Walking (170) Ox1 Location -9/Mines Parts ------- > --- POWER (1) -------- Light Ion Engine > --- PROPULSION (2) --- Potential Leg Potential Leg > --- UTILITY (2) ------ Huge Storage Unit > --- WEAPON (2) ------- Medium Laser Medium Laser > --- INVENTORY (25) --- Light Treads Aluminum Leg Aluminum Leg Aluminum Leg Small Storage Unit Propulsion Shielding Particle Gun XL Autogun Array Grenade Launcher Peak State ------------ > --- POWER ------------ Ion Engine > --- PROPULSION ------- Potential Leg Potential Leg > --- UTILITY ---------- Huge Storage Unit Propulsion Shielding > --- WEAPON ----------- Guided Plasma Cannon Light Assault Rifle > --- INVENTORY -------- Light Treads Aluminum Leg Aluminum Leg Aluminum Leg Small Storage Unit Propulsion Shielding Medium Laser Medium Laser Particle Gun XL Autogun Array Grenade Launcher [Rating: 36] Favorites ----------- Power Ion Engine Engine Ion Engine Propulsion Aluminum Leg Leg Aluminum Leg Utility Propulsion Shielding Device Improved Terrain Scanner Storage Small Storage Unit Protection Propulsion Shielding Weapon Light Assault Rifle Energy Gun Medium Laser Energy Cannon Guided Plasma Cannon Ballistic Gun Light Assault Rifle Build | -11 -10 -10 -10 -9 ------- Run | Yrd Mat Min Exi Min Slots Evolved . | . . . . . Power . | . . . . . Propulsion . | . . . . . Utility . | . . . . . Weapon . | . . . . . Parts Attached 17 | 7 3 1 2 4 Power 4 | 1 1 . . 2 Engine 4 | 1 1 . . 2 Core . | . . . . . Reactor . | . . . . . Propulsion 4 | 2 . . 2 . Treads . | . . . . . Leg 4 | 2 . . 2 . Wheel . | . . . . . Hover . | . . . . . Flight . | . . . . . Utility 4 | 2 2 . . . Device 1 | 1 . . . . Storage 2 | 1 1 . . . Processor . | . . . . . Hackware . | . . . . . Protection 1 | . 1 . . . Artifact . | . . . . . Weapon 5 | 2 . 1 . 2 Energy Gun 2 | . . 1 . 1 Energy Cannon 1 | . . . . 1 Ballistic Gun 2 | 2 . . . . Ballistic Cannon . | . . . . . Launcher . | . . . . . Special Weapon . | . . . . . Impact Weapon . | . . . . . Slashing Weapon . | . . . . . Piercing Weapon . | . . . . . Special Melee Weapon . | . . . . . Unidentified Prototypes 1 | . . . 1 . Parts Lost 5 | . . . . 5 Power 2 | . . . . 2 Propulsion . | . . . . . Utility 1 | . . . . 1 Weapon 2 | . . . . 2 Highest Loss Streak 5 | . . . . 5 To Critical Strikes . | . . . . . Average Backups 8 | 3 7 8 9 10 Power . | . . 1 1 . Propulsion 2 | 1 2 2 2 4 Utility 1 | . 2 2 1 2 Weapon 3 | 1 2 3 3 4 Tool/Special . | . . . . . Unused Backups 11 | . 5 . . 6 Power 1 | . 1 . . . Propulsion 3 | . 1 . . 2 Utility 2 | . 1 . . 1 Weapon 5 | . 2 . . 3 Tool/Special . | . . . . . Average Slot Usage (%) 99 | . 100 100 100 89 Engine 13 | . 14 14 14 9 Leg 28 | . 28 28 28 28 Storage 14 | . 14 14 14 14 Protection 13 | . 12 14 14 8 Energy Gun 9 | . . 7 14 18 Ballistic Gun 18 | . 28 20 14 9 Peak Build Rating 36 | 9 9 7 30 36 Average Rating 12 | 5 7 7 16 29 On Entrance 10 | . 9 7 7 30 Naked Turns . | . . . . . Heaviest Build 89 | 12 14 14 89 89 Greatest Support 60 | 20 20 20 60 60 Greatest Overweight (x) 1 | . . . 1 1 Average Overweight (x) . | . . . . 1 Largest Inventory Capacity 25 | 8 25 8 25 25 Average Capacity 12 | 7 8 8 14 25 Most Carried 15 | 5 9 8 15 15 Average Carried 9 | 3 7 7 10 13 Final Capacity 25 | 8 8 8 25 25 Final Carried 15 | 4 8 8 15 12 Class Distribution -------------------- 100% | Mutant Dominant Class ---------------- Mutant | -10/Materials Mutant | -10/Mines Mutant | -10/Exiles Mutant | -9/Mines Resources | -11 -10 -10 -10 -9 ----------- Run | Yrd Mat Min Exi Min Matter Collected 587 | 310 152 67 . 58 Remotely . | . . . . . Salvage Created 527 | 173 129 191 . 34 Parts 35 | 12 14 8 . 1 Haulers Intercepted . | . . . . . Recyclers Shooed 3 | . 3 . . . Parts Field Recycled . | . . . . . Retrieved Matter . | . . . . . Parts Self-Destructed . | . . . . . Prevented . | . . . . . Kills | -11 -10 -10 -10 -9 ------- Run | Yrd Mat Min Exi Min Combat Hostiles Destroyed 12 | . 7 4 . 1 Guns 11 | . 7 4 . . Cannons 1 | . . . . 1 Classes Destroyed 6 | 2 3 . . 1 Tunneler 4 | 4 . . . . Recycler 2 | 1 . 1 . . Watcher 1 | . 1 . . . Swarmer 9 | . 6 3 . . Grunt 2 | . 1 1 . . Demolisher 1 | . . . . 1 Best Kill Streak 5 | 5 3 3 . 1 Combat Bots Only 3 | . 3 3 . 1 Max Kills in Single Turn 2 | 2 1 1 . 1 Gunslinging . | . . . . . Exploded . | . . . . . Melee . | . . . . . Uniques/NPCs Destroyed . | . . . . . Combat | -11 -10 -10 -10 -9 -------- Run | Yrd Mat Min Exi Min Hostile Shots Fired 111 | . 31 22 . 58 Missed 34 | . 7 3 . 24 Hits 77 | . 24 19 . 34 Melee 2 | . . . . 2 Projectile 75 | . 24 19 . 32 AOE 10 | . . . . 10 Critical Strikes 1 | . . 1 . . Damage Taken 1245 | . 214 239 . 792 Core 256 | . 51 50 . 155 Absorbed by Shields . | . . . . . Redirected to Shielding 53 | . 19 20 . 14 Core Remaining (%) 100 | 100 . . . . Volleys Fired 65 | 10 28 15 . 12 Largest 2 | 2 2 2 . 2 Hottest 120 | 40 40 70 . 120 Shots Fired 124 | 20 56 30 . 18 Gun 121 | 20 56 30 . 15 Cannon 3 | . . . . 3 Launcher . | . . . . . Special . | . . . . . Kinetic 108 | 20 56 29 . 3 Thermal 16 | . . 1 . 15 Explosive . | . . . . . Electromagnetic . | . . . . . Robot Hit Streak 12 | 2 12 5 . 7 Robot Miss Streak 4 | 2 4 2 . 4 Penetration Max . | . . . . . Secondary Targets 2 | . 1 1 . . Max Gunslinging Chain 1 | . 1 1 . . Shots Hit Robots 67 | 8 32 15 . 12 Core Hits 31 | 6 12 9 . 4 Critical Kills . | . . . . . Critical Parts Destroyed 1 | . 1 . . . Critical Strikes 4 | . 1 . . 3 Burn 3 | . . . . 3 Destroy 1 | . 1 . . . Melee Attacks . | . . . . . Impact . | . . . . . Slashing . | . . . . . Piercing . | . . . . . Sneak Attacks . | . . . . . Combat Hostiles . | . . . . . Follow-up Attacks . | . . . . . Damage Inflicted 818 | 118 330 149 . 221 Guns 707 | 118 330 149 . 110 Cannons 111 | . . . . 111 Explosions . | . . . . . Melee . | . . . . . Ramming . | . . . . . Kinetic 618 | 118 330 149 . 21 Thermal 200 | . . . . 200 Explosive . | . . . . . Electromagnetic . | . . . . . Impact . | . . . . . Slashing . | . . . . . Piercing . | . . . . . Highest Corruption . | . . . . . Average Corruption . | . . . . . Corruption Purged . | . . . . . Corruption Blocked . | . . . . . Overload Shots . | . . . . . Overflow Damage . | . . . . . Projectiles . | . . . . . Explosions . | . . . . . Melee . | . . . . . Knockbacks . | . . . . . Impact . | . . . . . Kinetic . | . . . . . Secondary . | . . . . . Self-Inflicted Damage . | . . . . . Shots . | . . . . . Rammed . | . . . . . Targets Rammed . | . . . . . Kicked . | . . . . . Crushed . | . . . . . Highest Temperature 210 | . 12 30 . 210 Average Temperature 43 | . 7 12 . 66 Received Heat Transfer 141 | . 18 123 . . Siege Activations . | . . . . . Martial Activations . | . . . . . Shielding Activations . | . . . . . Robots Disrupted . | . . . . . Combat Hostiles . | . . . . . Robots Corrupted . | . . . . . Combat Hostiles . | . . . . . Parts Fried . | . . . . . Impact Corruptions . | . . . . . Robots Melted . | . . . . . Combat Hostiles . | . . . . . Parts Melted 1 | . . . . 1 Heat Transferred 721 | . . . . 721 Parts Sabotaged . | . . . . . Parts Stolen . | . . . . . Parts Stripped . | . . . . . Power Chain Reactions . | . . . . . Alert | -11 -10 -10 -10 -9 ------- Run | Yrd Mat Min Exi Min Maximum Alert Level . | . . . . . Low Security (%) 100 | 100 100 100 . 100 Level 1 . | . . . . . Level 2 . | . . . . . Level 3 . | . . . . . Level 4 . | . . . . . Level 5 . | . . . . . High Security . | . . . . . Max Security . | . . . . . Peak Influence 73 | 10 73 70 . 20 Initial 13 | . . 13 . . Average 17 | 2 26 15 . . Influence Increases 384 | 25 234 105 . 20 Destroy 0b10 Robot/C 240 | . 140 80 . 20 Destroy 0b10 Robot/NC 35 | 25 5 5 . . Destroy Leader 52 | . 32 20 . . Successful Hack 42 | . 42 . . . Lose Combat Pursuer 15 | . 15 . . . Influence Decreases 384 | 25 200 139 . 20 Entered New Map 21 | . . 21 . . Time Decay 343 | 25 200 118 . . Lost Part 20 | . . . . 20 Squads Dispatched 1 | . 1 . . . Investigation . | . . . . . Extermination . | . . . . . Reinforcement 1 | . 1 . . . Assault . | . . . . . Garrison . | . . . . . Intercept . | . . . . . Searches Triggered . | . . . . . Construction Impeded . | . . . . . Haulers Reinforced . | . . . . . Active Scanning Responses . | . . . . . Cargo Convoy Interrupts . | . . . . . Stealth | -11 -10 -10 -10 -9 --------- Run | Yrd Mat Min Exi Min Distress Signals . | . . . . . Communications Jammed . | . . . . . Distress Signals . | . . . . . Times Spotted 28 | . 15 5 . 8 Peak Tracking Total 6 | . 4 3 . 6 Tactical Retreats 2 | . 1 . . 1 Traps | -11 -10 -10 -10 -9 ------- Run | Yrd Mat Min Exi Min Traps Triggered 1 | . 1 . . . Indirectly . | . . . . . Trap Hack Attempts . | . . . . . Triggered . | . . . . . Disarmed . | . . . . . Reprogrammed . | . . . . . Reused . | . . . . . Traps Extracted . | . . . . . Installed . | . . . . . Triggered . | . . . . . Machines | -11 -10 -10 -10 -9 ---------- Run | Yrd Mat Min Exi Min Machines Disabled 1 | . 1 . . . Max in Single Turn 1 | . 1 . . . Machines Repaired . | . . . . . Machines Dismantled . | . . . . . Machines Sabotaged . | . . . . . Overloaded Fab Kills . | . . . . . Hacking | -11 -10 -10 -10 -9 --------- Run | Yrd Mat Min Exi Min Machines Accessed 11 | . 6 . 5 . Terminals 5 | . 5 . . . Fabricators . | . . . . . Repair Stations . | . . . . . Recycling Units 1 | . 1 . . . Scanalyzers . | . . . . . Garrison Access . | . . . . . Total Hacks 77 | . 27 . 50 . Successful 61 | . 11 . 50 . Failed 16 | . 16 . . . Catastrophic . | . . . . . Database Lockouts . | . . . . . Manual 16 | . . . 16 . Terminals 25 | . 25 . . . Fabricators . | . . . . . Repair Stations . | . . . . . Recycling Units 2 | . 2 . . . Scanalyzers . | . . . . . Garrison Access . | . . . . . Terminal Hacks 60 | . 10 . 50 . Record 52 | . 3 . 49 . Prototype ID Bank 1 | . 1 . . . Alert Level 1 | . 1 . . . Locate Traps 1 | . 1 . . . Dispatch Records 1 | . 1 . . . Security Status 1 | . 1 . . . Patrol Status 1 | . 1 . . . Investigation Status 1 | . 1 . . . Proto ID Catalog 1 | . . . 1 . Fabricator Hacks . | . . . . . Repair Station Hacks . | . . . . . Recycling Unit Hacks 1 | . 1 . . . Report Inventory 1 | . 1 . . . Scanalyzer . | . . . . . Garrison Access Hacks . | . . . . . Unauthorized Hacks . | . . . . . Terminals . | . . . . . Fabricators . | . . . . . Repair Stations . | . . . . . Recycling Units . | . . . . . Scanalyzers . | . . . . . Garrison Access . | . . . . . Data Cores Recovered . | . . . . . Used . | . . . . . Hacking Detections 6 | . 6 . . . Full Trace Events . | . . . . . Feedback Events . | . . . . . Feedback Blocked . | . . . . . Robot Schematics Acquired . | . . . . . Robots Built . | . . . . . Authchips . | . . . . . Time . | . . . . . Total Robot Build Rating . | . . . . . Part Schematics Acquired . | . . . . . Parts Built . | . . . . . Authchips . | . . . . . Time . | . . . . . Total Part Build Rating . | . . . . . Parts Repaired . | . . . . . Time . | . . . . . Parts Recycled . | . . . . . Recycled Matter . | . . . . . Retrieved Matter . | . . . . . Retrieved Components . | . . . . . Parts Scanalyzed . | . . . . . Part Schematics Acquired . | . . . . . Parts Damaged . | . . . . . Bothacking | -11 -10 -10 -10 -9 ------------ Run | Yrd Mat Min Exi Min Used RIF Installer . | . . . . . Robots Hacked . | . . . . . Non-combat . | . . . . . Combat . | . . . . . Robot Hacks Applied . | . . . . . Relay Couplers Released . | . . . . . Fabnet Peak Effective % . | . . . . . Robots Rewired . | . . . . . Allies Hacked . | . . . . . Hacks Repelled . | . . . . . Allies | -11 -10 -10 -10 -9 -------- Run | Yrd Mat Min Exi Min Total Allies . | . . . . . Largest Group . | . . . . . Highest-Rated Group . | . . . . . Highest-Rated Ally . | . . . . . Total Orders . | . . . . . Ally Attacks . | . . . . . Total Damage . | . . . . . Kills . | . . . . . Allies Corrupted . | . . . . . Allies Melted . | . . . . . Intel | -11 -10 -10 -10 -9 ------- Run | Yrd Mat Min Exi Min Active Infowar (turns) 101 | 26 75 . . . Terrain 101 | 26 75 . . . Robot Analysis Total . | . . . . . Derelict Logs Recovered 1 | . . . . 1 Drone Launches . | . . . . . Drone Recoveries . | . . . . . Exploration | -11 -10 -10 -10 -9 ------------- Run | Yrd Mat Min Exi Min Turns Passed 2526 | 145 690 434 1098 159 Spaces Moved 1774 | 93 492 325 796 68 Core 17 | 17 . . . . Treads . | . . . . . Legs 1757 | 76 492 325 796 68 Wheels . | . . . . . Hover . | . . . . . Flight . | . . . . . Fastest Speed 50 | 50 120 120 90 170 Average Speed 128 | 107 120 120 136 170 Slowest Speed 170 | 120 120 120 170 170 Overloaded Moves . | . . . . . Propulsion Burnouts . | . . . . . Robots Hopped . | . . . . . Potential Cave-ins . | . . . . . Cave-ins Triggered . | . . . . . Exploration Rate (%) 51 | 6 76 57 93 26 Regions Visited 4 Branch Regions 3 Pre-discovered Areas 1 | . . . 1 . Known Exits Taken . | . . . . . Unknown Exits Taken 4 | 1 1 1 1 . Scrap Searched . | . . . . . Spaces Dug . | . . . . . Terrain Destroyed . | . . . . . Melee . | . . . . . Projectile . | . . . . . AOE . | . . . . . Terrain Rammed . | . . . . . Walls Destroyed . | . . . . . Machines Disabled . | . . . . . Actions | -11 -10 -10 -10 -9 --------- Run | Yrd Mat Min Exi Min Total 1912 | 120 545 342 812 93 Wait 7 | . . . . 7 Move 1770 | 92 491 324 795 68 Hop . | . . . . . Pick Up 34 | 11 12 1 9 1 Fast Attach . | . . . . . Attach 13 | 7 2 . . 4 Detach 1 | . 1 . . . Swap 7 | . 2 1 3 1 Drop 15 | . 9 1 5 . Fire 65 | 10 28 15 . 12 Melee . | . . . . . Ram . | . . . . . Kick . | . . . . . Crush . | . . . . . Escape Stasis . | . . . . . Rewire . | . . . . . Trap . | . . . . . Miscellaneous . | . . . . . Route ------- -11/Scrapyard -10/Materials (discovered 2 exits: [*Mat] / [*Min]) -10/Mines (discovered 3 exits: [*Mat] / *Exi / [*Sub]) -10/Exiles (discovered 2 exits: [*Min x2]) -9/Mines History --------- Turn | Location | Event 3 | -11/Scrapyard | Discovered new exit (range 15) 146 | -11/Scrapyard | Entered Materials 301 | -10/Materials | Build established: Mutant 581 | -10/Materials | Discovered new exit (range 4) 728 | -10/Materials | Discovered new exit (range 16) 836 | -10/Materials | Entered Mines 841 | -10/Mines | Met a Derelict bent on vengeance 900 | -10/Mines | Discovered new exit (range 6) 955 | -10/Mines | Discovered new exit (range 9) 1264 | -10/Mines | Deemed a non-threat by the Exiles lab entrance 1265 | -10/Mines | Discovered new exit (range 5) 1270 | -10/Mines | Entered Exiles 1290 | -10/Exiles | Discovered new exit (range 15) 1309 | -10/Exiles | Met 8R-AWN 1328 | -10/Exiles | Met EX-HEX 1401 | -10/Exiles | Met EX-DEC 1451 | -10/Exiles | Visited The Gauntlet 1642 | -10/Exiles | Learned location of Zion (-7) 1719 | -10/Exiles | Discovered new exit (range 10) 1813 | -10/Exiles | Met EX-BIN 1839 | -10/Exiles | Aligned with FarCom system 1840 | -10/Exiles | Given EX-Vault access code 1892 | -10/Exiles | Opened EX-Vault 1903 | -10/Exiles | Found Prototype Leg 1905 | -10/Exiles | Found Prototype Leg 1906 | -10/Exiles | Identified Potential Leg (x2) 1916 | -10/Exiles | Found Gui. Plasma Cannon 1934 | -10/Exiles | Found XL Autogun Array 2021 | -10/Exiles | Warned to stay clear of 0b10 Research branches 2368 | -10/Exiles | Stole three prototypes: Potential Leg, Gui. Plasma Cannon, XL Autogun Array 2368 | -10/Exiles | Entered Mines 2387 | -9/Mines | Learned 4 Materials zone layouts 2405 | -9/Mines | Assembled infested the area 2410 | -9/Mines | Assisted by a Guerilla fighting off Assembled 2463 | -9/Mines | Core integrity fell below 50% 2497 | -9/Mines | Lost 5 parts (2p1u2w) 2502 | -9/Mines | Core integrity fell below 20% 2527 | -9/Mines | Destroyed by as-43795 with Assembled Blade Last Messages --------------- Ion Engine destroyed. Shock Absorption System melted. D-53 Grenadier destroyed. Propulsion Shielding destroyed. Gui. Plasma Cannon destroyed. Lgt. Assault Rifle destroyed. The unstable cave ceiling collapses. D-53 Grenadier destroyed. U-05 Engineer lays Concrete. The unstable cave ceiling collapses. U-05 Engineer lays Concrete. as-54023 suffers critical hit (Burn). as-51173 suffers critical hit (Burn). U-05 Engineer destroyed. as-54023 suffers critical hit (Burn). Acquired Lgt. Ion Engine. as-00645 sneak attacks. U-05 Engineer destroyed. Acquired 41 matter. Acquired 17 matter. Map ----- +----------------------------------------------------+ | ????# ##################???????????????????? | | ?????# #???????????????????? | | ????## $ ???????????????? | | ???## ####### ###### ???????????????? | | #### ####?????# #????????????????????????????? | | ##????????# ##???????????????????????????? | | ##### #????###### ##??????????????????????????? | | ##### #??## #??????????????????????????? | | #?#### #??????????????????????????? | | ###### ## # ##?????????????????????????? | | #???# % #?????????????????????????? | | #???# =%!##????????????????????????? | | #???## "" ##???????????????????????? | | #????### ="" ##??????????????????????? | | #??????## %"" #??????????????????????? | | #???????## =!! #??????????????????????? | | #????????### #??????????????????????? | | ??????????## ## #??????????????????????? | | #??????????# ### ##??????????????????????? | | ##??????????## ###?# ##???????????????????????? | | ##????????????####???#!%#????????????????????????? | | ?????????????????????# =###??????????????????????? | | ?????????????????????# a #??????????????????????? | | ?????????????????????#### #??????????????????????? | | ????????????????????????#a#??????????????????????? | | ????????????????????????#@#??????????????????????? | | ????????????????????????#r#??????????????????????? | | ????????????????????????# #??????????????????????? | | ????????????????????????# #??????????????????????? | | ????????????????????????# #??????????????????????? | | ????????????????????????# ??????????????????????? | | ????????????????????????###??????????????????????? | | ?????????????????????????????????????????????????? | | ?????????????????????????????????????????????????? | | ?????????????????????????????????????????????????? | | ?????????????????????????????????????????????????? | | ?????????????????????????????????????????????????? | | ?????????????????????????????????????????????????? | | ?????????????????????????????????????????????????? | | ?????????????????????????????????????????????????? | | ?????????????????????????????????????????????????? | | ?????????????????????????????????????????????????? | | ?????????????????????????????????????????????????? | | ?????????????????????????????????????????????????? | | ?????????????????????????????????????????????????? | | ?????????????????????????????????????????????????? | | ?????????????????????????????????????????????????? | | ?????????????????????????????????????????????????? | | ?????????????????????????????????????????????????? | | ?????????????????????????????????????????????????? | +----------------------------------------------------+ Best States ------------- Heat Dissipation 25 Energy Generation 10 Energy Capacity 250 Matter Stores 300 Matter Capacity 300 Sight Range 16 Terrain Scan Range 16 Terrain Scan Density 10 Propulsion Shielding 33 Evasion (%) 55 Item Schematics ----------------- None Robot Schematics ------------------ None Fabricated ------------ Nothing Repaired ---------- Nothing Alien Tech Used ----------------- None Achievements -------------- Librarian Tourist Challenges ------------ None Game ------ Seed ZhirovBombRouter Manual? 0 Play Time 00:40:06 Cumulative 2.3 hours Start 2025.06.28 @ 18:11:00 End 2025.06.28 @ 18:49:18 Sessions 1 Manual Loads 0 Difficulty Rogue Special Mode None Game No. 4 Rogue 4 Adventurer 0 Explorer 0 Win Type - Total 0 Types 0/0/0/0/0/0/0/0/0/0 Lore% 5 Gallery% 4 Achievement% 5 Wizard Run 0 Options --------- Layout 1 ASCII 0 Keyboard 0 Movement Arrows Keybinds 0 Fullscreen 1 Font 32/SmallcapsGlow Map View 50x35 Zoom Use 0% Tactical HUD 0 Map Filters NONE Filters NONE Steam 1 RUN: 87d6b652-4af1-4106-b848-f045d24d73bd